bitfinex/quotes_SOLUSD_20220117
["timestamp","ask_amount","ask_price","bid_price","bid_amount"]
[1642420251931,23.9086,143.14,143.07,24.5726]
[1642420252131,23.9086,143.14,143.08,42.84994077]
[1642420272282,3.97700727,143.16,143.09,0.25]
[1642420272482,3.97700727,143.16,143.09,24.2199]
[1642420273480,3.97700727,143.16,143.09,104.4375]
[1642420274181,3.97700727,143.17,143.09,104.4375]
[1642420274681,3.97700727,143.17,143.09,34.6975]
[1642420275483,27.88240727,143.18,143.09,34.6975]
[1642420277985,27.88240727,143.18,143.09,24.2199]
[1642420279401,38.00240727,143.18,143.09,24.2199]
[1642420279797,10.9218501,143.17,143.09,24.2199]
[1642420279998,18.87969079,143.17,143.09,24.2199]
[1642420280200,18.87969079,143.17,143.08,42.84994077]
[1642420280400,20.61873504,143.17,143.08,42.84994077]
[1642420280598,20.61873504,143.17,143.07,23.4306]
[1642420280799,10.12,143.16,143.07,23.4306]
[1642420281023,14.10083342,143.16,143.07,23.4306]
[1642420281624,23.3465,143.15,143.07,65.29181452]
[1642420282026,3.97700727,143.14,143.07,65.29181452]
[1642420282423,3.97700727,143.14,143.07,23.4306]
[1642420283024,3.97700727,143.14,143.07,29.4306]
[1642420283223,37.80600727,143.15,143.07,29.4306]
[1642420283423,37.80600727,143.15,143.08,42.01421431]
[1642420285324,37.80600727,143.15,143.04,24.8648]
[1642420285727,37.80600727,143.15,143.05,0.25]
[1642420285926,3.98201633,143.14,143.05,0.25]
[1642420286426,3.98201633,143.14,143.05,40.20099086]
[1642420286826,7.9590236,143.14,143.06,22.8179]
[1642420288730,37.80600727,143.15,143.06,22.8179]
[1642420290330,3.9808524,143.14,143.06,22.8179]
[1642420290532,3.9808524,143.14,143.02,7.2974801]
[1642420290734,16.20309665,143.14,143.03,23.1911]
[1642420290934,21.76509665,143.14,143.03,23.1911]
[1642420291131,25.74210392,143.14,143.03,23.1911]
[1642420291632,25.74210392,143.14,143.04,36.36534408]
[1642420292031,7.95785967,143.13,143.04,36.36534408]
[1642420292232,18.44175967,143.13,143.04,36.36534408]
[1642420292434,24.4762,143.12,143.04,36.36534408]
[1642420294634,24.4762,143.12,143.05,24.9481]
[1642420294835,3.97700727,143.14,143.05,31.4581]
[1642420295034,3.97700727,143.14,143.05,101.1981]
[1642420295234,3.97700727,143.14,143.05,41.5781]
[1642420295437,3.97700727,143.15,143.05,41.5781]
[1642420296339,3.97700727,143.15,143.05,52.0588]
[1642420296741,24.5993,143.16,143.06,69.74]
[1642420296944,24.5993,143.16,143.07,23.8469]
[1642420297140,24.5993,143.16,143.07,24.0969]
[1642420297340,24.5993,143.16,143.07,104.3162]
[1642420298343,24.5993,143.16,143.07,34.5762]
[1642420298542,24.5993,143.16,143.07,24.0969]
[1642420300146,24.5993,143.16,143.07,94.0969]
[1642420300950,24.5993,143.16,143.07,24.0969]
[1642420301147,24.5993,143.16,143.07,34.5762]
[1642420302347,24.5993,143.16,143.07,40.8362]
[1642420302549,3.97700727,143.18,143.08,69.74]
[1642420302750,3.97700727,143.18,143.09,33.5444]
[1642420302949,3.97700727,143.18,143.1,45.15477164]
[1642420303451,7.951053,143.19,143.1,45.15477164]
[1642420303650,7.951053,143.19,143.11,22.8086]
[1642420305554,27.69640727,143.2,143.11,22.8086]
[1642420305954,27.69640727,143.2,143.12,0.25]
[1642420306853,23.7194,143.2,143.12,0.25]
[1642420307855,23.7194,143.2,143.12,5.743]
[1642420308257,23.7194,143.2,143.13,24.6689]
[1642420315287,23.7194,143.2,143.14,0.25]
[1642420318589,25.70228129,143.2,143.14,0.25]
[1642420320795,25.70228129,143.2,143.1,114.89477164]
[1642420320796,33.92710064,143.2,143.1,45.15477164]
[1642420320996,35.66614489,143.2,143.1,45.15477164]
[1642420322196,1.98288129,143.18,143.1,45.15477164]
[1642420323997,1.98288129,143.17,143.1,45.15477164]
[1642420324596,1.98288129,143.17,143.08,34.7358]
[1642420324898,1.98288129,143.17,143.05,23.4558]
[1642420324899,1.98288129,143.16,143.05,23.4558]
[1642420325096,12.10288129,143.16,143.05,23.4558]
[1642420325397,25.50194425,143.15,143.05,23.4558]
[1642420325597,1.98288129,143.14,143.06,40.63878706]
[1642420325797,12.46588129,143.14,143.06,40.63878706]
[1642420326600,12.46588129,143.14,143.06,64.56818706]
[1642420326797,1.98288129,143.13,143.06,64.56818706]
[1642420327700,25.74578129,143.15,143.06,64.56818706]
[1642420328098,25.74578129,143.15,143.06,75.04858706]
[1642420328299,1.98288129,143.15,143.07,0.25]
[1642420328498,1.98288129,143.15,143.07,69.99]
[1642420328700,1.98288129,143.15,143.08,22.6548]
[1642420328900,1.98288129,143.15,143.09,0.25]
[1642420329500,1.98288129,143.17,143.09,0.25]
[1642420330507,1.98288129,143.17,143.09,10.7279]
[1642420331714,1.98288129,143.17,143.11,45.58273709]
[1642420334348,1.98288129,143.17,143.12,24.3743]
[1642420336347,1.98288129,143.18,143.12,24.3743]
[1642420337047,1.98288129,143.18,143.11,45.58273709]
[1642420337252,1.98288129,143.17,143.11,45.58273709]
[1642420337448,1.98288129,143.17,143.07,10.12]
[1642420337749,1.98288129,143.17,143.08,24.5776]
[1642420338551,1.98288129,143.17,143.09,44.73685202]
[1642420338950,1.98288129,143.16,143.1,23.7141]
[1642420349664,1.98288129,143.16,143.09,44.73685202]
[1642420350667,1.98288129,143.15,143.09,44.73685202]
[1642420359908,1.98288129,143.15,143.1,23.7506]
[1642420374127,1.98288129,143.16,143.1,23.7506]
[1642420381860,1.98288129,143.16,143.09,44.73685202]
[1642420381861,3.72192554,143.16,143.06,1.79527594]
[1642420382058,81.19392554,143.16,143.06,24.31517594]
[1642420382357,11.45392554,143.16,143.06,24.31517594]
[1642420382561,23.1521,143.15,143.06,24.31517594]
[1642420382759,33.6343,143.15,143.06,24.31517594]
[1642420382959,1.98288129,143.14,143.07,36.50303936]
[1642420391265,19.10443394,143.14,143.06,22.5199]
[1642420391467,27.36947819,143.14,143.04,1.79527594]
[1642420391667,10.12,143.13,143.04,1.79527594]
[1642420391965,22.5883,143.12,143.04,1.79527594]
[1642420392465,24.32734425,143.12,143.04,1.79527594]
[1642420392967,22.5883,143.12,143.04,1.79527594]
[1642420393164,22.5883,143.12,143.03,43.32875252]
[1642420393367,1.98288129,143.11,143.03,43.32875252]
[1642420393566,12.46948129,143.11,143.03,43.32875252]
[1642420394568,10.4866,143.11,143.03,43.32875252]
[1642420395868,10.4866,143.11,143.03,42.82875252]
[1642420397969,53.36574809,143.11,143.03,42.82875252]
[1642420398168,131.83474809,143.11,143.03,42.82875252]
[1642420398569,141.95474809,143.11,143.0,23.1858]
[1642420398771,24.2387,143.1,143.0,23.1858]
[1642420398970,10.4871,143.09,143.0,23.1858]
[1642420399370,23.4618,143.08,143.0,23.1858]
[1642420399572,23.4618,143.08,143.01,44.12363588]
[1642420405782,23.4618,143.08,143.02,0.25]
[1642420406282,23.4618,143.08,143.01,44.12363588]
[1642420406682,23.4618,143.08,143.02,0.25]
[1642420408182,1.44494197,143.1,143.02,0.25]
[1642420408385,1.44494197,143.1,143.02,23.817]
[1642420410884,1.44494197,143.1,143.02,23.567]
[1642420411384,44.84710958,143.1,143.02,23.567]
[1642420411585,35.91004197,143.1,143.02,23.567]
[1642420418391,37.89292326,143.1,143.02,23.567]
[1642420419394,25.42404197,143.1,143.02,23.567]
[1642420419829,25.42404197,143.1,143.03,0.25]
[1642420420030,23.9791,143.1,143.03,0.25]
[1642420420229,1.98288129,143.1,143.03,0.25]
[1642420420832,1.98288129,143.1,143.03,10.37]
[1642420421032,1.98288129,143.1,143.04,41.31101947]
[1642420421233,1.98288129,143.12,143.05,22.6886]
[1642420422132,1.98288129,143.13,143.05,22.6886]
[1642420422333,1.98288129,143.13,143.04,41.31101947]
[1642420423532,1.98288129,143.12,143.04,41.31101947]
[1642420424132,45.05537411,143.11,143.04,41.31101947]
[1642420424332,45.05537411,143.11,143.02,22.8442]
[1642420424533,23.9805,143.1,143.02,22.8442]
[1642420424732,34.4668,143.1,143.02,22.8442]
[1642420425334,1.45396269,143.09,143.03,41.05055424]
[1642420426434,10.4872,143.08,143.03,41.05055424]
[1642420427236,10.4872,143.08,143.02,22.8442]
[1642420428235,10.4872,143.08,143.02,61.47950225]
[1642420430936,3.43684398,143.09,143.02,61.47950225]
[1642420431337,1.98288129,143.09,143.02,61.47950225]
[1642420431936,1.98288129,143.09,143.02,71.59950225]
[1642420432540,23.9805,143.1,143.02,71.59950225]
[1642420433536,1.98288129,143.11,143.02,141.33950225]
[1642420433736,1.98288129,143.11,143.03,0.25]
[1642420434339,1.98288129,143.13,143.03,0.25]
[1642420435140,1.98288129,143.13,143.04,10.4818]
[1642420435337,1.98288129,143.13,143.06,35.09894869]
[1642420440852,1.98288129,143.13,143.05,24.0623]
[1642420441351,105.09388129,143.14,143.05,24.0623]
[1642420441551,1.73904425,143.13,143.02,12.27837594]
[1642420441749,1.73904425,143.13,143.03,24.4895]
[1642420441949,8.28470531,143.12,143.04,41.37223927]
[1642420442149,88.50920531,143.12,143.04,41.37223927]
[1642420442356,90.4920866,143.12,143.04,41.37223927]
[1642420443250,1.98288129,143.11,143.04,41.37223927]
[1642420443451,12.46798129,143.11,143.04,41.37223927]
[1642420445153,12.46798129,143.11,143.03,24.4895]
[1642420445353,24.32702554,143.11,142.99,25.81457594]
[1642420445555,92.4011,143.1,143.0,23.2827]
[1642420445753,10.4873,143.08,143.0,23.2827]
[1642420446174,10.4873,143.08,143.01,40.60882451]
[1642420446979,1.98288129,143.09,143.01,40.60882451]
[1642420447179,1.98288129,143.09,143.02,23.9946]
[1642420447782,35.13008129,143.1,143.02,23.9946]
[1642420448380,45.25008129,143.1,143.02,23.9946]
[1642420449582,43.2672,143.1,143.02,23.9946]
[1642420450383,45.25008129,143.1,143.02,23.9946]
[1642420452384,43.2672,143.1,143.02,23.9946]
[1642420452785,45.25008129,143.1,143.02,23.9946]
[1642420454389,1.98288129,143.1,143.02,23.9946]
[1642420454589,1.98288129,143.1,143.03,0.25]
[1642420455188,1.98288129,143.12,143.03,0.25]
[1642420456187,1.98288129,143.12,143.02,23.9946]
[1642420456387,1.98288129,143.13,143.02,23.9946]
[1642420456588,1.98288129,143.13,143.03,10.4825]
[1642420456788,1.98288129,143.13,143.04,63.06431219]
[1642420456987,1.98288129,143.13,143.05,0.25]
[1642420457991,1.98288129,143.13,143.04,63.06431219]
[1642420464499,1.98288129,143.13,143.05,0.25]
[1642420464699,1.98288129,143.13,143.04,63.06431219]
[1642420464903,12.46648129,143.13,143.04,63.06431219]
[1642420465100,18.08757136,143.13,143.04,63.06431219]
[1642420466100,22.954,143.12,143.04,63.06431219]
[1642420466302,33.4386,143.12,143.04,63.06431219]
[1642420467201,22.954,143.12,143.04,63.06431219]
[1642420467400,22.954,143.12,143.05,0.25]
[1642420467602,1.98288129,143.13,143.04,63.06431219]
[1642420468102,12.46658129,143.13,143.04,63.06431219]
[1642420468908,1.98288129,143.13,143.04,63.06431219]
[1642420469204,1.98288129,143.13,143.04,73.18431219]
[1642420469609,26.68338129,143.14,143.05,0.25]
[1642420470407,26.68338129,143.14,143.04,159.40621219]
[1642420470608,26.68338129,143.14,143.04,153.40621219]
[1642420470810,26.68338129,143.14,143.05,0.25]
[1642420472533,26.68338129,143.14,143.05,10.731]
[1642420472733,26.68338129,143.14,143.05,18.437]
[1642420472933,26.68338129,143.14,143.06,24.8315]
[1642420473334,26.68338129,143.14,143.07,0.25]
[1642420473533,1.98288129,143.14,143.07,37.7417443]
[1642420473734,3.50934512,143.15,143.07,107.4817443]
[1642420473934,3.50934512,143.15,143.08,24.2519]
[1642420474336,3.50934512,143.15,143.09,0.25]
[1642420474536,1.52646383,143.15,143.09,0.25]
[1642420474936,1.98288129,143.17,143.09,0.25]
[1642420475140,1.98288129,143.17,143.09,69.99]
[1642420475340,1.98288129,143.17,143.1,22.9143]
[1642420475539,1.98288129,143.17,143.11,69.74]
[1642420475737,1.98288129,143.18,143.12,23.9109]
[1642420475938,1.98288129,143.18,143.13,49.53815561]
[1642420477238,1.98288129,143.19,143.13,49.53815561]
[1642420478039,1.98288129,143.19,143.13,60.01315561]
[1642420478237,1.98288129,143.2,143.13,129.75315561]
[1642420478438,1.98288129,143.2,143.14,24.2441]
[1642420478638,1.98288129,143.2,143.15,69.74]
[1642420478839,1.98288129,143.2,143.14,34.6141]
[1642420479039,2.33369674,143.21,143.14,34.8741]
[1642420479241,2.33369674,143.21,143.15,69.74]
[1642420479438,2.33369674,143.21,143.16,37.41014601]
[1642420480044,0.35081545,143.21,143.16,37.41014601]
[1642420480844,0.35081545,143.21,143.16,61.49314601]
[1642420484051,0.35081545,143.21,143.11,10.4763]
[1642420484247,0.35081545,143.21,143.11,24.2133]
[1642420484248,10.3178597,143.21,143.11,24.2133]
[1642420484649,20.4378597,143.21,143.11,24.2133]
[1642420484849,18.69881545,143.21,143.11,24.2133]
[1642420485151,0.35081545,143.21,143.11,24.2133]
[1642420485348,0.35081545,143.21,143.12,0.25]
[1642420485751,0.35081545,143.21,143.12,48.50982769]
[1642420486652,0.35081545,143.21,143.13,22.6315]
[1642420486852,10.82861545,143.21,143.13,22.6315]
[1642420487851,20.74314116,143.21,143.13,22.6315]
[1642420488652,10.82861545,143.21,143.13,22.6315]
[1642420491085,10.12,143.2,143.13,22.6315]
[1642420491456,10.82861545,143.21,143.13,22.6315]
[1642420492257,0.35081545,143.21,143.13,22.6315]
[1642420496763,10.12,143.2,143.13,22.6315]
[1642420496961,10.87715348,143.19,143.13,22.6315]
[1642420497162,20.99715348,143.19,143.13,22.6315]
[1642420497364,20.99715348,143.19,143.1,23.5885]
[1642420497562,22.73619773,143.19,143.1,23.5885]
[1642420497963,33.21559773,143.19,143.1,23.5885]
[1642420498363,102.95559773,143.19,143.1,23.5885]
[1642420498588,110.39559773,143.19,143.1,23.5885]
[1642420498790,1.98288129,143.18,143.08,48.91617884]
[1642420498990,10.4819,143.16,143.08,48.91617884]
[1642420499189,42.00015743,143.15,143.08,48.91617884]
[1642420500394,10.4819,143.16,143.08,48.91617884]
[1642420501394,57.25822019,143.16,143.08,48.91617884]
[1642420503597,59.24110148,143.16,143.08,48.91617884]
[1642420506302,59.17120115,143.16,143.08,48.91617884]
[1642420506502,12.39488096,143.16,143.08,48.91617884]
[1642420507202,10.41199967,143.16,143.08,48.91617884]
[1642420507603,50.40370309,143.16,143.08,48.91617884]
[1642420508002,60.52370309,143.16,143.08,48.91617884]
[1642420510205,60.52370309,143.16,143.06,24.4501]
[1642420510505,1.60693139,143.15,143.03,26.69297594]
[1642420510707,10.4841,143.13,143.04,23.2022]
[1642420510905,20.6041,143.13,143.04,23.2022]
[1642420511305,20.6041,143.13,143.05,46.24646943]
[1642420515112,10.12,143.13,143.05,46.24646943]
[1642420515314,10.12,143.13,143.06,24.7643]
[1642420516015,36.29503139,143.15,143.06,24.7643]
[1642420517550,1.60693139,143.15,143.06,24.7643]
[1642420517949,1.98288129,143.16,143.07,69.74]
[1642420518150,1.98288129,143.16,143.08,24.6916]
[1642420518350,1.98288129,143.16,143.09,0.25]
[1642420518550,1.98288129,143.16,143.09,35.76961885]
[1642420518951,24.3214,143.17,143.09,35.76961885]
[1642420520960,41.09640545,143.17,143.09,35.76961885]
[1642420521857,41.09640545,143.17,143.08,24.6916]
[1642420522155,10.12,143.16,143.08,24.6916]
[1642420522355,79.86,143.16,143.08,24.6916]
[1642420522554,10.4821,143.15,143.08,24.6916]
[1642420522857,36.10230546,143.14,143.08,24.6916]
[1642420524558,56.70530546,143.14,143.04,10.4818]
[1642420524756,64.41834971,143.14,143.03,26.69297594]
[1642420524956,134.15834971,143.14,143.03,26.69297594]
[1642420525158,134.15834971,143.14,143.03,24.8977]
[1642420525356,64.41834971,143.14,143.03,61.22281192]
[1642420525957,134.15834971,143.14,143.03,61.22281192]
[1642420526766,64.41834971,143.14,143.03,61.22281192]
[1642420526962,1.98288129,143.13,143.03,61.22281192]
[1642420527159,12.10288129,143.13,143.03,61.22281192]
[1642420527360,10.4846,143.12,143.03,61.22281192]
[1642420527561,16.77500545,143.11,143.03,61.22281192]
[1642420527961,16.77500545,143.11,143.03,24.8977]
[1642420528161,33.49800545,143.11,143.03,24.8977]
[1642420528359,33.49800545,143.11,143.01,1.79527594]
[1642420528560,45.7222497,143.11,143.0,25.31587594]
[1642420528760,117.44513099,143.11,143.0,25.31587594]
[1642420528961,117.44513099,143.11,143.01,39.23231924]
[1642420530967,47.70513099,143.11,143.01,39.23231924]
[1642420532369,69.74,143.1,143.01,39.23231924]
[1642420532670,10.4874,143.08,143.01,39.23231924]
[1642420535976,10.12,143.09,143.01,39.23231924]
[1642420536177,10.12,143.08,143.01,39.23231924]
[1642420536383,35.0585,143.1,143.01,39.23231924]
[1642420537486,10.4868,143.09,143.01,39.23231924]
[1642420538982,36.10230546,143.08,143.0,23.5206]
[1642420539182,20.6081,143.07,142.97,24.19]
[1642420540383,92.08714425,143.07,142.95,24.48457594]
[1642420540583,23.3316,143.06,142.95,24.48457594]
[1642420540782,10.491,143.03,142.95,24.48457594]
[1642420541386,10.491,143.03,142.96,37.30803515]
[1642420541991,10.491,143.03,142.95,22.6893]
[1642420542790,20.611,143.03,142.95,22.6893]
[1642420543189,20.611,143.03,142.96,47.4115556]
[1642420547813,20.611,143.03,142.95,22.6893]
[1642420548714,20.611,143.03,142.91,34.9839]
[1642420548917,22.8911,143.02,142.92,22.8809]
[1642420549116,10.4933,143.0,142.92,22.8809]
[1642420549818,36.10230546,142.99,142.92,22.8809]
[1642420550217,46.59650546,142.99,142.92,22.8809]
[1642420550720,55.24050546,142.99,142.91,24.4924]
[1642420550922,65.36050546,142.99,142.87,12.28967594]
[1642420551118,10.4962,142.96,142.87,1.79527594]
[1642420551319,17.9322,142.96,142.87,1.79527594]
[1642420551520,17.9322,142.96,142.87,43.96207268]
[1642420551719,17.9322,142.96,142.87,42.16679674]
[1642420553020,10.4962,142.96,142.87,42.16679674]
[1642420553227,12.09518262,142.96,142.87,42.16679674]
[1642420553622,37.09198262,142.96,142.87,42.16679674]
[1642420553923,10.4948,142.98,142.87,52.66139674]
[1642420554124,10.4948,142.98,142.88,23.5387]
[1642420554523,24.326,143.0,142.88,93.2787]
[1642420555325,24.326,143.0,142.88,23.5387]
[1642420555523,34.8194,143.0,142.88,34.0323]
[1642420557728,34.8194,143.0,142.88,40.0323]
[1642420558332,34.8194,143.0,142.88,34.0323]
[1642420561028,34.8194,143.0,142.88,44.1523]
[1642420561429,34.8194,143.0,142.88,45.40642642]
[1642420561629,34.8194,143.0,142.9,10.4924]
[1642420561828,24.326,143.0,142.9,10.4924]
[1642420562029,24.326,143.0,142.9,11.74652642]
[1642420562229,24.326,143.0,142.9,21.86652642]
[1642420562435,24.326,143.0,142.91,25.0708]
[1642420562630,10.492,143.02,142.92,37.84886102]
[1642420562929,10.492,143.02,142.93,23.5325]
[1642420564031,10.492,143.02,142.93,23.2825]
[1642420567335,20.612,143.02,142.93,23.2825]
[1642420569036,20.612,143.02,142.93,23.21295067]
[1642420569237,43.7016,143.02,142.93,23.21295067]
[1642420574070,113.4416,143.02,142.93,23.21295067]
[1642420574268,115.18064425,143.02,142.93,23.21295067]
[1642420575069,123.06264425,143.02,142.89,1.79527594]
[1642420575368,249.62264425,143.02,142.89,1.79527594]
[1642420577171,1.98288129,143.0,142.87,24.3178]
[1642420577371,10.4963,142.97,142.87,24.3178]
[1642420577572,10.12,142.96,142.87,24.3178]
[1642420578275,26.8543,142.96,142.87,24.3178]
[1642420578873,28.59334425,142.96,142.86,1.79527594]
[1642420579276,69.74,142.95,142.86,1.79527594]
[1642420579477,10.4992,142.93,142.86,1.79527594]
[1642420579675,20.6192,142.93,142.86,1.79527594]
[1642420579875,20.6192,142.93,142.85,23.838]
[1642420580475,28.6142,142.93,142.84,1.79527594]
[1642420580678,69.74,142.92,142.84,1.79527594]
[1642420580877,10.5006,142.9,142.84,1.79527594]
[1642420581277,10.5006,142.9,142.83,26.22747594]
[1642420581479,15.87367696,142.89,142.83,26.22747594]
[1642420583078,15.87367696,142.89,142.83,24.4322]
[1642420583682,17.45554202,142.89,142.83,24.4322]
[1642420586785,27.95684202,142.89,142.83,24.4322]
[1642420593693,38.07684202,142.89,142.83,24.4322]
[1642420595797,38.07684202,142.89,142.8,24.9729]
[1642420595997,38.07684202,142.89,142.81,23.7641]
[1642420599723,107.81684202,142.89,142.81,23.7641]
[1642420599924,38.07684202,142.89,142.81,23.7641]
[1642420611234,107.81684202,142.89,142.81,23.7641]
[1642420612535,38.07684202,142.89,142.81,23.7641]
[1642420617040,107.81684202,142.89,142.81,23.7641]
[1642420618441,38.07684202,142.89,142.81,23.7641]
[1642420618842,107.81684202,142.89,142.81,23.7641]
[1642420619646,38.07684202,142.89,142.81,23.7641]
[1642420621243,107.81684202,142.89,142.81,23.7641]
[1642420621843,109.55588627,142.89,142.8,1.79527594]
[1642420623669,111.53876756,142.89,142.77,1.79527594]
[1642420625270,111.53876756,142.89,142.75,90.99765675]
[1642420625271,1.98288129,142.88,142.78,1.79527594]
[1642420625471,10.5055,142.85,142.78,1.79527594]
[1642420625672,37.00363395,142.84,142.78,1.79527594]
[1642420626473,37.00363395,142.84,142.77,1.79527594]
[1642420627073,61.58283395,142.84,142.77,1.79527594]
[1642420627473,10.5055,142.83,142.77,1.79527594]
[1642420628377,46.87734425,142.87,142.77,25.96577594]
[1642420628378,22.8509,142.86,142.77,25.96577594]
[1642420628574,32.9709,142.86,142.77,25.96577594]
[1642420628776,10.5044,142.85,142.77,25.96577594]
[1642420628976,10.12,142.86,142.77,25.96577594]
[1642420629175,10.12,142.88,142.77,32.64877594]
[1642420629375,10.12,142.88,142.78,0.25]
[1642420629775,3.56474635,142.89,142.78,0.25]
[1642420630178,3.56474635,142.89,142.79,10.5004]
[1642420630376,3.56474635,142.89,142.8,24.0381]
[1642420630578,3.56474635,142.89,142.81,45.61012403]
[1642420630779,3.56474635,142.89,142.82,22.7313]
[1642420630982,1.58186506,142.89,142.82,22.7313]
[1642420631479,12.08316506,142.89,142.82,22.7313]
[1642420633985,22.20316506,142.89,142.82,22.7313]
[1642420634584,22.20316506,142.89,142.83,44.32556037]
[1642420634785,10.12,142.89,142.83,50.48256037]
[1642420635383,1.98288129,142.9,142.83,50.48256037]
[1642420635585,1.98288129,142.9,142.84,22.6097]
[1642420635785,1.98288129,142.92,142.84,22.6097]
[1642420635984,48.21226757,142.92,142.84,22.6097]
[1642420636487,1.98288129,142.92,142.84,22.6097]
[1642420637193,36.94338129,142.93,142.84,22.6097]
[1642420637587,80.59507313,142.93,142.84,22.6097]
[1642420638290,78.61219184,142.93,142.84,22.6097]
[1642420638490,34.9605,142.93,142.84,22.6097]
[1642420639090,45.0805,142.93,142.84,22.6097]
[1642420639490,92.35144682,142.93,142.84,22.6097]
[1642420640190,45.0805,142.93,142.84,22.6097]
[1642420641493,10.12,142.93,142.84,33.1062]
[1642420642894,1.98288129,142.95,142.84,33.1062]
[1642420643897,10.12,142.96,142.84,33.1062]
[1642420644295,1.98288129,142.97,142.85,10.37]
[1642420644496,1.98288129,142.97,142.88,10.4932]
[1642420644696,1.98288129,142.97,142.89,23.9471]
[1642420645097,1.98288129,142.97,142.9,43.54784407]
[1642420645298,44.07708307,142.98,142.9,43.54784407]
[1642420645498,1.98288129,142.98,142.9,43.54784407]
[1642420646603,40.76849754,142.98,142.9,43.54784407]
[1642420646800,40.76849754,142.98,142.89,34.4401]
[1642420647200,53.00224179,142.98,142.89,23.9471]
[1642420647600,10.12,142.97,142.89,23.9471]
[1642420648000,11.85904425,142.97,142.89,23.9471]
[1642420649425,22.35484425,142.97,142.89,23.9471]
[1642420650126,22.35484425,142.97,142.86,23.6025]
[1642420650327,69.74,142.96,142.86,23.6025]
[1642420650527,10.12,142.95,142.86,23.6025]
[1642420650729,11.85904425,142.95,142.86,23.6025]
[1642420651133,69.74,142.94,142.86,23.6025]
[1642420651334,12.10881337,142.93,142.86,23.6025]
[1642420651537,22.60801337,142.93,142.86,23.6025]
[1642420653330,10.12,142.92,142.86,23.6025]
[1642420653629,10.5006,142.91,142.83,24.1465]
[1642420656140,10.5006,142.91,142.79,24.0523]
[1642420656141,10.12,142.9,142.79,24.0523]
[1642420656334,10.5035,142.87,142.8,22.8679]
[1642420656533,26.4425,142.87,142.79,24.0523]
[1642420656935,40.76849754,142.86,142.79,24.0523]
[1642420658336,40.76849754,142.86,142.79,70.86867941]
[1642420658735,40.76849754,142.86,142.79,24.0523]
[1642420659535,51.27209754,142.86,142.79,24.0523]
[1642420660836,61.39209754,142.86,142.79,24.0523]
[1642420664143,67.42509754,142.86,142.79,24.0523]
[1642420664343,69.16414179,142.86,142.77,24.6908]
[1642420665751,69.74,142.85,142.77,24.6908]
[1642420665949,10.5064,142.83,142.77,24.6908]
[1642420666158,10.12,142.82,142.77,24.6908]
[1642420666348,12.10881337,142.81,142.77,24.6908]
[1642420666550,12.10881337,142.81,142.73,1.79527594]
[1642420667253,12.10881337,142.81,142.72,57.40577352]
[1642420667486,12.10881337,142.81,142.73,0.25]
[1642420667687,20.6264,142.82,142.73,0.25]
[1642420668687,64.95373191,142.82,142.73,0.25]
[1642420669390,64.95373191,142.82,142.72,81.26707352]
[1642420670693,64.95373191,142.82,142.72,79.47179758]
[1642420671493,20.6264,142.82,142.72,79.47179758]
[1642420671694,10.12,142.82,142.72,80.72906674]
[1642420671895,10.5051,142.84,142.73,69.74]
[1642420672096,10.5051,142.84,142.74,24.8096]
[1642420672299,10.5051,142.84,142.74,25.0596]
[1642420672498,59.01890138,142.84,142.74,25.0596]
[1642420672695,59.01890138,142.84,142.74,24.8096]
[1642420673098,59.01890138,142.84,142.75,0.25]
[1642420673796,59.01890138,142.84,142.74,24.8096]
[1642420674199,80.18303736,142.83,142.72,1.79527594]
[1642420674397,10.5098,142.8,142.72,1.79527594]
[1642420674598,90.3698,142.8,142.72,1.79527594]
[1642420674798,92.10884425,142.8,142.72,1.79527594]
[1642420675197,4.36350953,142.79,142.7,63.02086612]
[1642420676399,14.87260953,142.79,142.7,63.02086612]
[1642420678198,10.12,142.78,142.7,63.02086612]
[1642420678402,10.5102,142.77,142.7,63.02086612]
[1642420680699,10.12,142.78,142.7,63.02086612]
[1642420685702,49.34086552,142.77,142.7,23.3879]
[1642420688406,20.6293,142.78,142.7,23.3879]
[1642420689207,20.6293,142.78,142.67,12.30457594]
[1642420689408,71.79568482,142.77,142.67,1.79527594]
[1642420689607,10.5126,142.74,142.67,1.79527594]
[1642420690008,10.12,142.73,142.67,1.79527594]
[1642420690208,47.5975431,142.72,142.67,1.79527594]
[1642420690409,47.5975431,142.72,142.65,23.4851]